fUSD/lending_fUSD_20241026
["ID","MTS","AMOUNT","RATE_DAILY","PERIOD"]
[340862626,1729955448671,-640.3,0.00060273,120]
[340862627,1729955448681,-500.0,0.00060273,120]
[340862628,1729955448692,-500.0,0.00060273,120]
[340862629,1729955448701,-861.75,0.00060273,120]
[340862630,1729955448711,-500.0,0.00060273,120]
[340862631,1729955448720,-654.01,0.00060273,120]
[340862632,1729955448729,-500.0,0.00060273,120]
[340862633,1729955448738,-500.0,0.00060273,120]
[340862634,1729955448747,-2224.33,0.00060273,120]
[340862635,1729955448759,-728.36,0.00060273,120]
[340862636,1729955448769,-732.61,0.00060273,120]
[340862637,1729955448779,-1355.91,0.00060273,120]
[340862638,1729955448789,-1267.56,0.00060273,120]
[340862639,1729955448799,-500.0,0.00060273,120]
[340862640,1729955448808,-500.0,0.00060273,21]
[340862641,1729955448818,-500.0,0.00060273,120]
[340862642,1729955448827,-500.0,0.00060273,120]
[340862643,1729955448837,-2256.85,0.00060273,120]
[340862644,1729955448846,-500.0,0.00060273,120]
[340862645,1729955448856,-765.38,0.00060273,120]
[340862646,1729955448865,-1009.86,0.00060273,120]
[340862647,1729955448874,-500.0,0.00060273,3]
[340862648,1729955448884,-500.0,0.00060341,120]
[340862649,1729955448894,-203.0,0.0006035,30]
[340862650,1729955448903,-210.0,0.0006035,30]
[340862651,1729955448912,-210.0,0.0006035,30]
[340862652,1729955448920,-300.0,0.00060399,10]
[340862653,1729955448929,-339.88524832,0.00060399,10]
[340862654,1729955448937,-177.5991,0.000604,40]
[340862655,1729955448946,-281.51289781,0.000604,2]
[340862656,1729955448956,-191.96539391,0.000604,30]
[340862657,1729955448965,-152.0752433,0.000604,2]
[340862658,1729955448975,-7127.42811608,0.000604,2]
[340862659,1729955448984,-1496.81323864,0.000604,2]
[340862660,1729955448994,-150.0,0.00060411,120]
[340862661,1729955449006,-361.846153,0.00060476,2]
[340862662,1729955449017,-459.0238782,0.00060476,2]
[340862663,1729955449026,-2110.0,0.000605,30]
[340862664,1729955449036,-1500.0,0.000605,90]
[340862665,1729955449046,-4826.1876148,0.00060517,2]
[340862666,1729955449057,-238.00755861,0.0006052,120]
[340862667,1729955449067,-500.0,0.0006053,120]
[340862668,1729955449077,-500.0,0.00060547,120]
[340862669,1729955449087,-500.0,0.00060547,120]
[340862670,1729955449096,-500.0,0.00060547,120]
[340862671,1729955449106,-500.0,0.00060547,120]
[340862672,1729955449115,-500.0,0.00060547,120]
[340862673,1729955449125,-300.0,0.00060558,10]
[340862674,1729955449135,-17705.9363067,0.00060558,120]
[340862675,1729955449144,-514.1028511,0.00060577,2]
[340862676,1729955449154,-7513.43925535,0.0006058,120]
[340862677,1729955449164,-500.0,0.00060596,120]
[340862678,1729955449184,-2000.0,0.000606,30]
[340862679,1729955449195,-200.0,0.000606,30]
[340862680,1729955449205,-200.0,0.000606,30]
[340862681,1729955449215,-200.0,0.000606,30]
[340862682,1729955449224,-5900.0,0.000606,22]
[340862683,1729955449234,-500.0,0.00060619,120]
[340862684,1729955449244,-500.0,0.00060629,120]
[340862685,1729955449255,-500.0,0.00060657,120]
[340862686,1729955449265,-405.2646229,0.00060657,2]
[340862687,1729955449275,-4826.1876148,0.00060698,2]
[340862688,1729955449286,-2121.74,0.000607,60]
[340862689,1729955449296,-1100.0,0.000607,22]
[340862690,1729955449306,-501.97921643,0.00060701,120]
[340862691,1729955449317,-448.6830928,0.00060737,2]
[340862692,1729955449326,-569.181824,0.00060737,2]
[340862693,1729955449337,-23352.36708475,0.0006074,2]
[340862694,1729955449346,-500.0,0.00060762,120]
[340862695,1729955449356,-4826.1876148,0.00060779,2]
[340862696,1729955449366,-5005.02891,0.00060799,30]
[340862697,1729955449376,-2284.92,0.000608,60]
[340862698,1729955449386,-1100.0,0.000608,22]
[340862699,1729955449396,-5835.98411898,0.000608,120]
[340862700,1729955449406,-492.1015627,0.00060816,2]
[340862701,1729955449415,-500.0,0.00060821,120]
[340862702,1729955449425,-500.0,0.00060821,120]
[340862703,1729955449434,-546.13777473,0.00060821,120]
[340862704,1729955449444,-500.0,0.00060821,120]
[340862705,1729955449454,-505.48,0.00060821,120]
[340862706,1729955449463,-173.69301552,0.00060821,14]
[340862707,1729955449473,-749.96,0.00060821,120]
[340862708,1729955449483,-150.0,0.00060821,120]
[340862709,1729955449492,-500.0,0.00060821,120]
[340862710,1729955449503,-640.3,0.00060821,120]
[340862711,1729955449513,-500.0,0.00060821,120]
[340862712,1729955449523,-500.0,0.00060821,120]
[340862713,1729955449533,-861.75,0.00060821,120]
[340862714,1729955449544,-500.0,0.00060821,120]
[340862715,1729955449554,-654.01,0.00060821,120]
[340862716,1729955449564,-500.0,0.00060821,120]
[340862717,1729955449574,-500.0,0.00060821,120]
[340862718,1729955449584,-2224.33,0.00060821,120]
[340862719,1729955449594,-728.36,0.00060821,120]
[340862720,1729955449603,-732.61,0.00060821,120]
[340862721,1729955449614,-1355.91,0.00060821,120]
[340862722,1729955449624,-1267.56,0.00060821,120]
[340862723,1729955449633,-500.0,0.00060821,120]
[340862724,1729955449643,-500.0,0.00060821,21]
[340862725,1729955449652,-500.0,0.00060821,120]
[340862726,1729955449662,-500.0,0.00060821,120]
[340862727,1729955449672,-2256.85,0.00060821,120]
[340862728,1729955449684,-500.0,0.00060821,120]
[340862729,1729955449694,-765.38,0.00060821,120]
[340862730,1729955449703,-1009.86,0.00060821,120]
[340862731,1729955449713,-500.0,0.00060821,3]
[340862732,1729955449723,-4826.1876148,0.00060858,2]
[340862733,1729955449732,-624.2607969,0.00060858,2]
[340862734,1729955449742,-336.35186379,0.00060883,120]
[340862735,1729955449752,-500.0,0.00060889,120]
[340862736,1729955449763,-1357870.45130231,0.00060889,120]
[340862737,1729955449773,-10000.0,0.000609,120]
[340862738,1729955449783,-50000.0,0.000609,120]
[340862739,1729955449793,-4262.83204836,0.000609,15]
[340862740,1729955449803,-1913.79087331,0.000609,10]
[340862741,1729955449812,-1100.0,0.000609,22]
[340862742,1729955449822,-281.51289781,0.000609,2]
[340862743,1729955449832,-150.00499011,0.000609,120]
[340862744,1729955449842,-150.00499011,0.000609,120]
[340862745,1729955449851,-150.00499011,0.000609,120]
[340862746,1729955449861,-150.00499011,0.000609,120]
[340862747,1729955449871,-150.00499011,0.000609,120]
[340862748,1729955449880,-150.00499011,0.000609,120]
[340862749,1729955449890,-150.00499011,0.000609,120]
[340862750,1729955449899,-150.00499011,0.000609,120]
[340862751,1729955449911,-150.00499011,0.000609,120]
[340862752,1729955449920,-150.00499011,0.000609,120]
[340862753,1729955449930,-150.00499011,0.000609,120]
[340862754,1729955449939,-150.00499011,0.000609,120]
[340862755,1729955449949,-150.00499011,0.000609,120]
[340862756,1729955449959,-150.0,0.000609,120]
[340862757,1729955449968,-7168.41596111,0.000609,2]
[340862758,1729955449978,-191.96539391,0.000609,30]
[340862759,1729955449988,-152.0752433,0.000609,2]
[340862760,1729955449996,-7127.42811608,0.000609,2]
[340862761,1729955450007,-500.0,0.00060916,120]
[340862762,1729955450015,-3648.59823853,0.00060998,30]
[340862763,1729955450024,-1486.13238035,0.00060999,120]
[340862764,1729955450032,-1486.13238035,0.00060999,120]
[340862765,1729955450039,-1486.13238035,0.00060999,120]
[340862766,1729955450048,-1486.13238035,0.00060999,120]
[340862767,1729955450056,-1486.13238035,0.00060999,120]
[340862768,1729955450063,-1486.13238035,0.00060999,120]
[340862769,1729955450071,-1486.13238035,0.00060999,120]
[340862770,1729955450079,-1486.13238035,0.00060999,120]
[340862771,1729955450086,-1486.13238035,0.00060999,120]
[340862772,1729955450093,-1486.13238035,0.00060999,120]
[340862773,1729955450100,-10000.0,0.00061,61]
[340862774,1729955450108,-753.59399525,0.00061,120]
[340862775,1729955450117,-23083.36691197,0.00061,60]
[340862776,1729955450124,-28993.68885359,0.00061,64]
[340862777,1729955450136,-601.98595797,0.00061,64]
[340862778,1729955450145,-2238.84722224,0.00061,64]
[340862779,1729955450154,-6005.18116868,0.00061,64]
[340862780,1729955450315,-151.0,0.00059726,120]
[340862781,1729955450325,-151.0,0.0005979,120]
[340862782,1729955450335,-151.0,0.0006,120]
[340862783,1729955450344,-151.0,0.0006,120]
[340862784,1729955450353,-151.0,0.0006,120]
[340862785,1729955450362,-1496.81323864,0.000609,2]
[340862786,1729955450371,-54123.02215107,0.00061,64]
[340862787,1729955450380,-481421.14306674,0.00061,120]
[340862788,1729955450392,-20685.37614258,0.00061,120]
[340862789,1729955450411,-952.09603091,0.00054794,120]
[340862790,1729955450422,-47.90396909,0.00054794,120]
[340862791,1729955450431,-151.0,0.0006,120]
[340862792,1729955450441,-638.69334891,0.00061,120]
[340862793,1729955450452,-405.250674,0.00061,120]
[340862794,1729955450463,-7264.10895398,0.00061,120]
[340862795,1729955450608,-1127.16204823,0.0006,120]
[340862796,1729955450769,-500.0,0.00054794,120]
[340862797,1729955450779,-27.24082048,0.00059726,120]
[340862799,1729955529367,162.53382216,0.00015342,2]
[340862800,1729955529394,1.75617784,0.00015342,2]
[340862806,1729955822379,150.0,0.00019902,15]
[340862809,1729956103682,229.10580158,0.00043377,30]
[340862812,1729956309146,1972.08842938,0.00015,2]
[340862813,1729956309203,114550.8485,0.00015,2]
[340862814,1729956309235,76463.0,0.00015,2]
[340862815,1729956309312,1438001.72376779,0.00015,2]
[340862816,1729956309460,276.89575493,0.00043375,90]
[340862818,1729956311747,999.999998,0.00043375,120]
[340862819,1729956329421,289.79616299,0.00043375,30]
[340862820,1729956330051,228.98776687,0.00043375,30]
[340862821,1729956336029,348.01922902,0.00043375,30]
[340862822,1729956342724,12849.42421248,0.0002,2]
[340862823,1729956342959,163.24396254,0.00043375,120]
[340862824,1729956356496,22322.60459099,0.000159,2]
[340862825,1729956397550,250.0,0.00015,2]
[340862826,1729956398633,300.0,0.00017,2]
[340862827,1729956401560,540.34523443,0.00012666,2]
[340862828,1729956425828,1283.23184766,0.00043375,120]
[340862829,1729956429675,565.58502372,0.000153,2]
[340862830,1729956434038,176.9374344,0.00017433,2]
[340862831,1729956456673,341.91598706,0.00043375,120]
[340862832,1729956470395,881.75314449,0.00043375,120]
[340862833,1729956470560,156.2107341,0.00043375,30]
[340862834,1729956471407,2000.0,0.00043375,2]
[340862835,1729956472293,355.50374067,0.00043375,30]
[340862836,1729956474738,343.20096699,0.00043375,120]
[340862837,1729956482252,984188.04305577,0.00015,2]
[340862838,1729956484931,163.12581024,0.00043375,120]
[340862839,1729956496942,549.656702,0.0001439,2]
[340862841,1729956509479,551.77241421,0.00015235,2]
[340862842,1729956515101,1169.57655288,0.00043375,120]
[340862843,1729956515655,596.88054849,0.00043375,30]
[340862844,1729956515919,162.44496918,0.00043375,45]
[340862845,1729956518997,232.62751504,0.00043375,30]
[340862846,1729956520900,300.09648542,0.00043375,120]
[340862847,1729956522113,205.82396034,0.00043375,120]
[340862848,1729956526077,3999.999999,0.00043375,30]
[340862914,1729956631956,-3229.41283236,0.00022,2]
[340862916,1729956631966,-1330.89259715,0.0002495,2]
[340862918,1729956631977,-849.8074223,0.0002495,2]
[340863071,1729956638022,-3749.36380974,0.0002495,2]
[340863072,1729956638033,-301.999999,0.00025,2]
[340863073,1729956638043,-996.58904221,0.00026,2]
[340863074,1729956638053,-4433.65,0.00026,2]
[340863075,1729956638064,-6194.1135612,0.00026,2]
[340863076,1729956638074,-517.04997439,0.0002604,2]
[340863077,1729956638083,-151.0,0.0003,120]
[340863078,1729956638092,-160.56,0.00034369,30]
[340863079,1729956638102,-284.0,0.000347,2]
[340863080,1729956638111,-5158.75589708,0.000379,2]
[340863081,1729956638120,-280.34,0.00039491,2]
[340863082,1729956638129,-300.0,0.0003966,30]
[340863083,1729956638139,-174.741,0.0003976,55]
[340863084,1729956638149,-100000.0,0.0003986,2]
[340863085,1729956638158,-26179.2742,0.0003986,2]
[340863086,1729956638170,-3446.58,0.0003986,2]
[340863087,1729956638180,-500.0,0.000399,14]
[340863088,1729956638189,-1000.0,0.00040072,2]
[340863089,1729956638199,-2889.63883065,0.0004018,2]
[340863090,1729956638209,-179.75407647,0.0004027,2]
[340863091,1729956638219,-1230.51542116,0.00040279,30]
[340863092,1729956638228,-500.0,0.00040279,31]
[340863093,1729956638239,-163.68146382,0.00040279,31]
[340863094,1729956638249,-222.10430503,0.00040279,31]
[340863095,1729956638259,-500.0,0.00040279,31]
[340863096,1729956638268,-500.0,0.00040279,31]
[340863097,1729956638278,-500.0,0.00040279,31]
[340863098,1729956638287,-335.23335404,0.00040279,31]
[340863099,1729956638296,-500.0,0.00040279,31]
[340863100,1729956638306,-307.77202841,0.00040279,31]
[340863101,1729956638315,-500.0,0.00040279,31]
[340863102,1729956638324,-500.0,0.00040279,31]
[340863103,1729956638445,-300.0,0.00040279,31]
[340863104,1729956638456,-500.0,0.00040279,31]
[340863105,1729956638466,-946416.88730752,0.0004028,2]
[340863106,1729956638476,-500.08214108,0.00040886,5]
[340863107,1729956638485,-214.53702839,0.00042375,14]
[340863108,1729956638494,-319.7791311,0.0004245,2]
[340863109,1729956638503,-159.711936,0.0004255,10]
[340863110,1729956638513,-7356.81149581,0.0004329,9]
[340863111,1729956638522,-7316.19701885,0.0004329,9]
[340863112,1729956638532,-150.0,0.000433,2]
[340863113,1729956638541,-39178.33689816,0.00043375,2]
[340863114,1729956638551,-534.465177,0.00043375,2]
[340863115,1729956638560,-5374.99585608,0.00043375,2]
[340863116,1729956638570,-162.4,0.00043466,2]
[340863117,1729956638579,-200236.00697776,0.000448,120]
[340863118,1729956638588,-205.86521344,0.0004489,120]
[340863119,1729956638598,-293.96520108,0.00045,120]
[340863120,1729956638607,-10567.62777119,0.00045,120]
[340863121,1729956638617,-619.64003295,0.00045,120]
[340863122,1729956638627,-1000.0,0.00045081,2]
[340863123,1729956638636,-319.47138642,0.000465,120]
[340863124,1729956638647,-150.31,0.00046622,2]
[340863125,1729956638656,-159.11018283,0.00047,60]
[340863126,1729956638666,-203.48510959,0.00047,120]
[340863127,1729956638675,-181.68807877,0.0004748,115]
[340863128,1729956638684,-14713.6229916,0.0004749,10]
[340863129,1729956638693,-14632.3940377,0.0004749,10]
[340863130,1729956638702,-21922.32860029,0.000475,2]
[340863131,1729956638711,-5174.98436827,0.000476,2]
[340863132,1729956638720,-7356.81149581,0.00048879,10]
[340863133,1729956638730,-7316.19701885,0.00048879,10]
[340863134,1729956638740,-10710.63668467,0.00048889,120]
[340863135,1729956638749,-1100.0,0.000489,17]
[340863136,1729956638759,-7356.81149581,0.0004899,10]
[340863137,1729956638768,-7316.19701885,0.0004899,10]
[340863138,1729956638778,-20815.87749817,0.00049,2]
[340863139,1729956638787,-250.0,0.00049411,120]
[340863140,1729956638797,-156.32397338,0.000495,120]
[340863141,1729956638806,-604.0,0.000496,5]
[340863142,1729956638816,-7356.81149581,0.0004999,10]
[340863143,1729956638825,-7316.19701885,0.0004999,10]
[340863144,1729956638835,-4000.0,0.0005,2]
[340863145,1729956638844,-7730.70525107,0.0005,60]
[340863146,1729956638853,-200.0,0.0005,2]
[340863147,1729956638863,-1000.0,0.0005009,120]
[340863148,1729956638872,-4000.0,0.00051,3]
[340863149,1729956638881,-197.28135766,0.00051666,60]
[340863150,1729956638889,-198.47,0.000518,7]
[340863151,1729956638900,-3565.64271549,0.0005199,11]
[340863161,1729956640275,-801.826174,0.0005199,11]
[340863162,1729956640288,-2989.34260632,0.0005199,11]
[340863163,1729956640297,-7316.19701885,0.0005199,10]
[340863164,1729956640307,-3457.1,0.00052,4]
[340863165,1729956640317,-150.0,0.000547,99]
[340863166,1729956640327,-500.0,0.00054794,120]
[340863167,1729956640337,-500.0,0.00054794,120]
[340863168,1729956640347,-500.0,0.00054794,120]
[340863169,1729956640356,-429.18802522,0.00054794,120]
[340863170,1729956640366,-500.0,0.00054794,120]
[340863171,1729956640376,-449.22678478,0.00054794,120]
[340863172,1729956640386,-500.0,0.00054794,120]
[340863173,1729956640396,-500.0,0.00054794,120]
[340863174,1729956640407,-211.05040286,0.00054794,120]
[340863175,1729956640416,-500.0,0.00054794,120]
[340863176,1729956640426,-500.0,0.00054794,120]
[340863177,1729956640437,-589.08,0.00054794,120]
[340863178,1729956640446,-500.0,0.00054794,120]
[340863179,1729956640457,-500.0,0.00054794,120]
[340863180,1729956640467,-7356.81149581,0.0005489,12]
[340863181,1729956640476,-7316.19701885,0.0005489,11]
[340863182,1729956640486,-6113.2970396,0.000549,120]
[340863183,1729956640496,-44140.8689749,0.0005499,12]
[340863184,1729956640506,-43897.1821131,0.0005499,11]
[340863185,1729956640515,-179.75407647,0.0005499,2]
[340863186,1729956640525,-13213.91655428,0.00055,120]
[340863187,1729956640534,-83590.0,0.00055,15]
[340863188,1729956640544,-50633.20249767,0.00055,30]
[340863189,1729956640553,-485.92,0.00055041,2]
[340863190,1729956640563,-500.0,0.00055068,120]
[340863191,1729956640572,-589.08,0.00055068,120]
[340863192,1729956640582,-1000.0,0.00055099,120]
[340863193,1729956640591,-255.92143558,0.00055342,120]
[340863194,1729956640600,-500.0,0.00055342,120]
[340863195,1729956640610,-500.0,0.00055342,120]
[340863196,1729956640619,-500.0,0.00055342,120]
[340863197,1729956640629,-589.08,0.00055342,120]
[340863198,1729956640639,-500.0,0.00055616,120]
[340863199,1729956640650,-589.08,0.00055616,120]
[340863200,1729956640659,-500.0,0.0005589,120]
[340863201,1729956640669,-500.0,0.0005589,120]
[340863202,1729956640678,-500.0,0.0005589,120]
[340863203,1729956640688,-589.08,0.0005589,120]
[340863204,1729956640698,-7356.81149581,0.0005599,12]
[340863205,1729956640708,-7316.19701885,0.0005599,11]
[340863206,1729956640717,-1473.2223,0.00055999,2]
[340863207,1729956640727,-4196.6384069,0.00056,120]
[340863208,1729956640737,-4085.18888329,0.00056099,120]
[340863209,1729956640747,-5835.98511893,0.00056099,120]
[340863210,1729956640757,-500.0,0.00056164,120]
[340863211,1729956640766,-589.08,0.00056164,120]
[340863212,1729956640776,-500.0,0.00056438,120]
[340863213,1729956640785,-500.0,0.00056438,120]
[340863214,1729956640795,-500.0,0.00056438,120]
[340863215,1729956640804,-589.08,0.00056438,120]
[340863216,1729956640813,-500.0,0.00056712,120]
[340863217,1729956640822,-589.08,0.00056712,120]
[340863218,1729956640834,-162.64,0.00056959,120]
[340863219,1729956640847,-414.03,0.00056983,2]
[340863220,1729956640859,-500.0,0.00056986,120]
[340863221,1729956640872,-500.0,0.00056986,120]
[340863222,1729956640883,-500.0,0.00056986,120]
[340863223,1729956640895,-589.08,0.00056986,120]
[340863224,1729956640908,-1435.0,0.00057,30]
[340863225,1729956640918,-14713.6229916,0.00057023,13]
[340863226,1729956640928,-14632.3940377,0.00057023,11]
[340863227,1729956640940,-500.0,0.00057032,120]
[340863228,1729956640952,-790.95,0.00057032,120]
[340863229,1729956640963,-7259.83,0.00057032,120]
[340863230,1729956640974,-500.0,0.00057032,120]
[340863231,1729956640985,-316.63317126,0.00057032,120]
[340863232,1729956640997,-500.0,0.00057032,120]
[340863233,1729956641008,-23900.0,0.00057033,2]
[340863234,1729956641020,-4085.18888329,0.00057099,120]
[340863235,1729956641031,-500.0,0.0005726,120]
[340863236,1729956641042,-589.08,0.0005726,120]
[340863237,1729956641053,-485.92,0.00057305,2]
[340863238,1729956641065,-7259.83,0.00057306,120]
[340863239,1729956641077,-500.0,0.00057306,120]
[340863240,1729956641089,-500.0,0.00057306,120]
[340863241,1729956641101,-174.741,0.0005732,111]
[340863242,1729956641112,-540.26737136,0.000575,30]
[340863243,1729956641123,-7316.19701885,0.00057524,12]
[340863244,1729956641134,-500.0,0.00057534,120]
[340863245,1729956641146,-206.70059007,0.00057534,120]
[340863246,1729956641161,-500.0,0.00057534,120]
[340863247,1729956641175,-589.08,0.00057534,120]
[340863248,1729956641187,-500.0,0.0005758,120]
[340863249,1729956641198,-790.95,0.0005758,120]
[340863250,1729956641211,-7259.83,0.0005758,120]
[340863251,1729956641222,-500.0,0.0005758,120]
[340863252,1729956641233,-500.0,0.0005758,120]
[340863253,1729956641246,-7356.81149581,0.0005768,13]
[340863254,1729956641258,-500.0,0.00057808,120]
[340863255,1729956641268,-589.08,0.00057808,120]
[340863256,1729956641278,-7259.83,0.00057854,120]
[340863257,1729956641288,-500.0,0.00057854,120]
[340863258,1729956641298,-500.0,0.00057854,120]
[340863259,1729956641309,-374.82784731,0.000579,2]
[340863260,1729956641320,-2375.80937203,0.000579,2]
[340863261,1729956641331,-997.87549244,0.00057982,2]
[340863262,1729956641342,-4778.94397408,0.00057982,2]
[340863263,1729956641354,-179.75407647,0.0005799,7]
[340863264,1729956641365,-159449.64979867,0.00058,30]
[340863265,1729956641379,-20685.37614258,0.00058,30]
[340863266,1729956641397,-59289.61781275,0.00058,30]
[340863267,1729956641449,-1514.88690637,0.00058,30]
[340863268,1729956641463,-341.74634295,0.00058,30]
[340863269,1729956641483,-712.24271112,0.00058,30]
[340863270,1729956641496,-736.59,0.00058,30]
[340863271,1729956641508,-1339.108034,0.00058,30]
[340863580,1729956646555,-26179.2742,0.0003976,2]
[340863582,1729956646565,-1463989.72527209,0.00058,30]
[340863584,1729956646574,-506.30504773,0.00058,120]
[340863586,1729956646584,-567.44748116,0.00058082,120]
[340863588,1729956646593,-500.0,0.00058082,120]
[340863590,1729956646603,-589.08,0.00058082,120]
[340863592,1729956646612,-4085.18888329,0.00058099,120]
[340863594,1729956646621,-500.0,0.00058128,120]
[340863596,1729956646630,-790.95,0.00058128,120]
[340863598,1729956646640,-7259.83,0.00058128,120]
[340863600,1729956646650,-500.0,0.00058128,120]
[340863602,1729956646660,-500.0,0.00058128,120]
[340863604,1729956646669,-446.12975995,0.00058356,120]
[340863606,1729956646679,-589.08,0.00058356,120]
[340863608,1729956646688,-7259.83,0.00058402,120]
[340863610,1729956646698,-500.0,0.00058402,120]
[340863612,1729956646707,-500.0,0.00058402,120]
[340863614,1729956646717,-589.08,0.0005863,120]
[340863616,1729956646726,-500.0,0.00058676,120]
[340863618,1729956646735,-790.95,0.00058676,120]
[340863620,1729956646744,-7259.83,0.00058676,120]
[340863622,1729956646753,-500.0,0.00058676,120]
[340863624,1729956646763,-500.0,0.00058676,120]
[340863626,1729956646771,-44140.8689749,0.0005879,13]
[340863628,1729956646781,-43897.1821131,0.0005879,12]
[340863629,1729956646790,-80694.51102692,0.000588,2]
[340863631,1729956646799,-5835.98411898,0.000588,120]
[340863633,1729956646809,-589.08,0.00058904,120]
[340863635,1729956646818,-7259.83,0.0005895,120]
[340863637,1729956646827,-500.0,0.0005895,120]
[340863639,1729956646836,-500.0,0.0005895,120]
[340863641,1729956646845,-1450.0,0.00059,30]
[340863643,1729956646855,-153.57,0.00059,120]
[340863645,1729956646864,-153.57,0.00059,120]
[340863647,1729956646873,-153.57,0.00059,120]
[340863649,1729956646883,-153.57,0.00059,120]
[340863651,1729956646892,-153.57,0.00059,120]
[340863653,1729956646901,-153.57,0.00059,120]
[340863655,1729956646910,-153.57,0.00059,120]
[340863657,1729956646920,-153.57,0.00059,120]
[340863659,1729956646929,-153.57,0.00059,120]
[340863661,1729956646939,-153.57,0.00059,120]
[340863663,1729956646948,-153.57,0.00059,120]
[340863665,1729956646957,-153.57,0.00059,120]
[340863667,1729956646966,-153.57,0.00059,120]
[340863669,1729956646976,-153.57,0.00059,120]
[340863671,1729956646985,-4085.18888329,0.00059099,120]
[340863673,1729956646994,-589.08,0.00059178,120]
[340863675,1729956647003,-376.70135462,0.000592,30]
[340863677,1729956647012,-174.91200203,0.000592,30]
[340863679,1729956647022,-500.0,0.00059224,120]
[340863681,1729956647031,-790.95,0.00059224,120]
[340863683,1729956647040,-7259.83,0.00059224,120]
[340863685,1729956647049,-500.0,0.00059224,120]
[340863687,1729956647060,-500.0,0.00059224,120]
[340863688,1729956647069,-173.18,0.00059282,2]
[340863690,1729956647078,-2000.0,0.000594,120]
[340863692,1729956647087,-17214.16802972,0.000594,120]
[340863694,1729956647097,-374.82784731,0.000594,2]
[340863696,1729956647106,-2375.80937203,0.000594,2]
[340863698,1729956647115,-997.87549243,0.00059441,2]
[340863700,1729956647125,-4778.94397408,0.00059441,2]
[340863702,1729956647134,-589.08,0.00059452,120]
[340863704,1729956647143,-7259.83,0.00059498,120]
[340863706,1729956647155,-500.0,0.00059498,120]
[340863708,1729956647164,-500.0,0.00059498,120]
[340863710,1729956647176,-2110.0,0.000595,30]
[340863712,1729956647186,-485.92,0.00059569,2]
[340863714,1729956647195,-7356.81149581,0.00059715,14]
[340863716,1729956647205,-7316.19701885,0.00059715,12]
[340863718,1729956647215,-500.0,0.00059725,120]
[340863720,1729956647224,-500.0,0.00059725,120]
[340863722,1729956647233,-1112.16,0.00059725,120]
[340863724,1729956647243,-500.0,0.00059725,120]
[340863726,1729956647254,-500.0,0.00059725,21]
[340863728,1729956647264,-500.0,0.00059725,120]
[340863730,1729956647273,-500.0,0.00059725,120]
[340863732,1729956647282,-525.59,0.00059725,120]
[340863734,1729956647291,-589.08,0.00059726,120]
[340863735,1729956647301,-500.0,0.00059772,120]
[340863737,1729956647310,-790.95,0.00059772,120]
[340863739,1729956647319,-7259.83,0.00059772,120]
[340863741,1729956647329,-500.0,0.00059772,120]
[340863743,1729956647338,-500.0,0.00059772,120]
[340863745,1729956647347,-798.65113863,0.0005979,120]
[340863747,1729956647357,-500.0,0.00059793,120]
[340863749,1729956647366,-512.43843449,0.00059793,120]
[340863751,1729956647375,-7356.81149581,0.00059889,14]
[340863753,1729956647385,-7316.19701885,0.00059889,12]
[340863755,1729956647394,-150.0,0.00059899,120]
[340863757,1729956647405,-500.0,0.00059899,120]
[340863759,1729956647415,-500.0,0.00059899,120]
[340863761,1729956647424,-500.0,0.00059899,120]
[340863763,1729956647433,-500.0,0.00059899,120]